Cogmind - Beta 16 @@@ ROGUE MODE // 2026.01.02 @ 18:25:17 Player: the Result: Self-destructed Performance ------------- Evolutions (1) 500 Regions Visited (3) 600 Robots Destroyed (55) 275 Value Destroyed (955) 955 Prototype IDs (9) 180 Alien Tech Used (0) 0 Bonus (174) 174 TOTAL SCORE: 2684 Bonus ------- Follower Combat Kills 174 Cogmind --------- Core Integrity 313/400 Matter 300/300 Energy 265/265 System Corruption 0% Temperature Cool (0) Movement Rolling (125) Ox3 Location -9/Materials Parts ------- > --- POWER (1) -------- Improved Ion Engine > --- PROPULSION (2) --- Wheel > --- UTILITY (4) ------ Cooling System Large Storage Unit Seismic Detector Improved Utility Shielding > --- WEAPON (2) ------- Autogun Autogun > --- INVENTORY (15) --- Light Nuclear Core Light Nuclear Core High-capacity Storage Unit Weight Redist. System Improved Utility Shielding Improved Utility Shielding Improved Utility Shielding High-powered Tractor Beam Improved EM Shotgun Improved EM Shotgun Autogun Autogun Rocket Launcher Datajack Katana Peak State ------------ > --- POWER ------------ Improved Ion Engine > --- PROPULSION ------- Wheel Wheel > --- UTILITY ---------- Improved Heat Sink Large Storage Unit Seismic Detector Improved Utility Shielding > --- WEAPON ----------- Improved EM Shotgun Improved EM Shotgun > --- INVENTORY -------- Light Nuclear Core Light Nuclear Core Wheel High-capacity Storage Unit Weight Redist. System Seismic Detector Transport Network Coupler Improved Utility Shielding Improved Utility Shielding Improved Utility Shielding High-powered Tractor Beam Improved EM Shotgun Improved EM Shotgun Heavy Assault Rifle Mining Laser [Rating: 21] Favorites ----------- Power Ion Engine Engine Ion Engine Propulsion Wheel Treads Light Treads Wheel Wheel Utility Seismic Detector Device Seismic Detector Storage Large Storage Unit Protection Improved Utility Shielding Weapon Light Assault Rifle Energy Gun Improved EM Shotgun Ballistic Gun Light Assault Rifle Special Weapon Mining Laser Slashing Weapon Katana Build | -11 -10 -10 -9 ------- Run | Yrd Mat Min Mat Slots Evolved 2 | . . . 2 Power . | . . . . Propulsion . | . . . . Utility 2 | . . . 2 Weapon . | . . . . Parts Attached 40 | 7 3 10 20 Power 5 | 1 . 1 3 Engine 5 | 1 . 1 3 Core . | . . . . Reactor . | . . . . Propulsion 12 | 2 . 6 4 Treads 1 | . . . 1 Leg . | . . . . Wheel 11 | 2 . 6 3 Hover . | . . . . Flight . | . . . . Utility 10 | 2 1 1 6 Device 5 | 1 . 1 3 Storage 3 | 1 1 . 1 Processor . | . . . . Hackware . | . . . . Protection 2 | . . . 2 Artifact . | . . . . Weapon 13 | 2 2 2 7 Energy Gun 3 | . . . 3 Energy Cannon . | . . . . Ballistic Gun 8 | 2 1 2 3 Ballistic Cannon . | . . . . Launcher . | . . . . Special Weapon 1 | . 1 . . Impact Weapon . | . . . . Slashing Weapon 1 | . . . 1 Piercing Weapon . | . . . . Special Melee Weapon . | . . . . Unidentified Prototypes 2 | . . . 2 Parts Lost 5 | . . 3 2 Power . | . . . . Propulsion 3 | . . 1 2 Utility 1 | . . 1 . Weapon 1 | . . 1 . Highest Loss Streak 2 | . . 1 2 To Critical Strikes . | . . . . Average Backups 11 | 3 8 11 14 Power 1 | . 1 1 2 Propulsion 1 | 1 2 2 1 Utility 3 | . 1 3 5 Weapon 4 | . 3 3 4 Tool/Special . | . . . . Unused Backups 22 | 2 . . 20 Power 3 | . . . 3 Propulsion 1 | 1 . . . Utility 7 | . . . 7 Weapon 10 | 1 . . 9 Tool/Special 1 | . . . 1 Average Slot Usage (%) 98 | . 100 99 97 Engine 12 | . 14 14 11 Wheel 24 | . 28 28 20 Device 17 | . 14 13 21 Storage 12 | . 14 14 11 Protection 5 | . . . 10 Energy Gun 3 | . . . 6 Ballistic Gun 20 | . 25 27 14 Peak Build Rating 21 | 7 8 8 21 Average Rating 12 | 5 7 7 17 On Entrance 5 | . 7 7 8 Avg Prop Armor Cover (%) . | . . . . Naked Turns . | . . . . Heaviest Build 38 | 13 28 28 38 Greatest Support 20 | 20 20 20 20 Greatest Overweight (x) 12 | . 1 2 12 Average Overweight (x) . | . . 1 1 Largest Inventory Capacity 15 | 8 15 15 15 Average Capacity 14 | 7 13 15 15 Most Carried 15 | 5 10 15 15 Average Carried 11 | 3 8 11 14 Final Capacity 15 | 8 15 15 15 Final Carried 15 | 5 9 14 15 Class Distribution -------------------- 50% | Scavenger-Mutant 49% | Mutant Dominant Class ---------------- Mutant | -10/Materials Mutant | -10/Mines Scavenger-Mutant | -9/Materials Resources | -11 -10 -10 -9 ----------- Run | Yrd Mat Min Mat Matter Collected 1366 | 342 57 281 686 Remotely . | . . . . Salvage Created 1893 | 262 221 376 1034 Parts 139 | 17 15 38 69 Haulers Intercepted 5 | . 2 . 3 Recyclers Shooed 3 | 1 . . 2 Parts Field Recycled . | . . . . Retrieved Matter . | . . . . Parts Self-Destructed . | . . . . Prevented . | . . . . Parts Restored . | . . . . Kills | -11 -10 -10 -9 ------- Run | Yrd Mat Min Mat Combat Hostiles Destroyed 29 | . 4 10 15 Guns 27 | . 4 10 13 AOE 2 | . . . 2 Classes Destroyed 11 | 2 4 1 4 Worker 3 | . 1 1 1 Builder 2 | . . 1 1 Tunneler 13 | 7 . 5 1 Hauler 5 | . 2 . 3 Recycler 1 | 1 . . . Watcher 2 | . . . 2 Swarmer 12 | . 3 9 . Grunt 8 | . 1 1 6 Brawler 1 | . . . 1 Duelist 1 | . . . 1 Sentry 7 | . . . 7 Best Kill Streak 5 | 5 3 3 3 Combat Bots Only 3 | . 3 3 3 Max Kills in Single Turn 2 | 1 1 2 2 Gunslinging 1 | . . 1 . Exploded 1 | . . . 1 Melee . | . . . . Uniques/NPCs Destroyed . | . . . . Combat | -11 -10 -10 -9 -------- Run | Yrd Mat Min Mat Hostile Shots Fired 136 | . 26 56 54 Missed 38 | . 10 16 12 Hits 98 | . 16 40 42 Projectile 98 | . 16 40 42 Critical Strikes 1 | . . 1 . Damage Taken 1124 | . 126 431 567 Core 212 | . 16 109 87 Absorbed by Shields . | . . . . Redirected to Shielding 66 | . . . 66 Regen/Repaired (Parts) 245 | . . . 245 Core Remaining (%) 75 | 100 . 50 . Volleys Fired 213 | 36 23 81 73 Largest 2 | 2 2 2 2 Hottest 100 | 40 100 40 100 Shots Fired 413 | 72 42 162 137 Gun 402 | 72 38 162 130 Cannon . | . . . . Launcher . | . . . . Special 11 | . 4 . 7 Kinetic 374 | 72 38 162 102 Thermal 11 | . 4 . 7 Explosive . | . . . . Electromagnetic 28 | . . . 28 Robot Hit Streak 12 | 8 7 8 12 Robot Miss Streak 4 | 3 2 4 4 Penetration Max . | . . . . Secondary Targets 4 | . 1 3 . Max Gunslinging Chain 1 | . 1 1 . Shots Hit Robots 264 | 46 25 98 95 Core Hits 105 | 18 12 37 38 Critical Kills 2 | . . 1 1 Critical Parts Destroyed . | . . . . Critical Strikes 2 | . . 1 1 Destroy 2 | . . 1 1 Melee Attacks 5 | . . . 5 Impact . | . . . . Slashing 5 | . . . 5 Piercing . | . . . . Sneak Attacks 1 | . . . 1 Combat Hostiles . | . . . . Follow-up Attacks . | . . . . Damage Inflicted 2970 | 393 203 799 1575 Guns 2780 | 393 203 799 1385 Cannons . | . . . . Explosions 117 | . . . 117 Melee 73 | . . . 73 Ramming . | . . . . Kinetic 2479 | 393 203 799 1084 Thermal 117 | . . . 117 Explosive . | . . . . Electromagnetic 301 | . . . 301 Impact . | . . . . Slashing 73 | . . . 73 Piercing . | . . . . Highest Corruption . | . . . . Average Corruption . | . . . . Corruption Purged . | . . . . Corruption Blocked . | . . . . Overload Shots . | . . . . Overflow Damage . | . . . . Projectiles . | . . . . Explosions . | . . . . Melee . | . . . . Knockbacks . | . . . . Impact . | . . . . Kinetic . | . . . . Secondary . | . . . . Self-Inflicted Damage . | . . . . Shots . | . . . . Rammed . | . . . . Targets Rammed . | . . . . Kicked . | . . . . Crushed . | . . . . Highest Temperature 43 | . 20 43 2 Average Temperature 13 | . 11 15 2 Received Heat Transfer 360 | . 12 138 210 Siege Activations . | . . . . Martial Activations . | . . . . Shielding Activations . | . . . . Robots Disrupted . | . . . . Combat Hostiles . | . . . . Robots Corrupted 1 | . . . 1 Combat Hostiles . | . . . . Parts Fried 1 | . . . 1 Impact Corruptions . | . . . . Robots Melted . | . . . . Combat Hostiles . | . . . . Parts Melted . | . . . . Heat Transferred 100 | . . . 100 Parts Sabotaged . | . . . . Parts Stolen . | . . . . Parts Stripped . | . . . . Power Chain Reactions 2 | . . . 2 Alert | -11 -10 -10 -9 ------- Run | Yrd Mat Min Mat Maximum Alert Level . | . . . . Low Security (%) 100 | 100 100 100 100 Level 1 . | . . . . Level 2 . | . . . . Level 3 . | . . . . Level 4 . | . . . . Level 5 . | . . . . High Security . | . . . . Max Security . | . . . . Peak Influence 151 | 5 70 118 151 Initial 31 | . . 15 31 Average 44 | 1 15 38 65 Influence Increases 1301 | 40 134 482 645 Destroy 0b10 Robot/C 740 | . 80 320 340 Destroy 0b10 Robot/NC 145 | 40 15 45 45 Destroy Leader 206 | . 24 60 122 Allied During Kill 44 | . . 27 17 Successful Hack 68 | . 11 . 57 Destroy Structure 23 | . 4 . 19 Lose Combat Pursuer 75 | . . 30 45 Influence Decreases 1239 | 40 94 440 665 Entered New Map 76 | . . 25 51 Time Decay 932 | 40 94 345 453 Lost Part 50 | . . 30 20 Lost Ally 60 | . . 40 20 Purge Threat 121 | . . . 121 Squads Dispatched 3 | . 2 1 . Investigation 2 | . 1 1 . Extermination . | . . . . Reinforcement 1 | . 1 . . Assault . | . . . . Garrison . | . . . . Intercept . | . . . . Searches Triggered . | . . . . Construction Impeded . | . . . . Haulers Reinforced . | . . . . Active Scanning Responses . | . . . . Cargo Convoy Interrupts . | . . . . Stealth | -11 -10 -10 -9 --------- Run | Yrd Mat Min Mat Distress Signals 2 | . 1 . 1 Communications Jammed . | . . . . Distress Signals . | . . . . Times Spotted 50 | . 4 17 29 Peak Tracking Total 5 | . 4 3 5 Tactical Retreats 3 | . . 1 2 Traps | -11 -10 -10 -9 ------- Run | Yrd Mat Min Mat Traps Triggered 3 | . . . 3 Indirectly . | . . . . Trap Hack Attempts . | . . . . Triggered . | . . . . Disarmed . | . . . . Reprogrammed . | . . . . Reused . | . . . . Traps Extracted . | . . . . Installed . | . . . . Triggered . | . . . . Machines | -11 -10 -10 -9 ---------- Run | Yrd Mat Min Mat Machines Disabled . | . . . . Max in Single Turn . | . . . . Machines Repaired . | . . . . Machines Dismantled . | . . . . Machines Sabotaged . | . . . . Overloaded Fab Kills . | . . . . Hacking | -11 -10 -10 -9 --------- Run | Yrd Mat Min Mat Machines Accessed 15 | . 5 1 9 Terminals 14 | . 5 1 8 Fabricators . | . . . . Repair Stations 1 | . . . 1 Recycling Units . | . . . . Scanalyzers . | . . . . Garrison Access . | . . . . Total Hacks 44 | . 13 3 28 Successful 25 | . 4 . 21 Failed 19 | . 9 3 7 Catastrophic 2 | . 1 . 1 Database Lockouts . | . . . . Manual 24 | . 9 3 12 Terminals 42 | . 13 3 26 Fabricators . | . . . . Repair Stations 2 | . . . 2 Recycling Units . | . . . . Scanalyzers . | . . . . Garrison Access . | . . . . Terminal Hacks 15 | . 3 . 12 Robot Analysis 1 | . 1 . . Prototype ID Bank 5 | . . . 5 Terminal Index 1 | . . . 1 Unreport Threat 1 | . . . 1 Locate Traps 2 | . . . 2 Hauler Manifests 1 | . . . 1 Registered Components 2 | . 1 . 1 Zone Layout 2 | . 1 . 1 Fabricator Hacks . | . . . . Repair Station Hacks 2 | . . . 2 Scan Component 1 | . . . 1 Repair 1 | . . . 1 Recycling Unit Hacks . | . . . . Scanalyzer . | . . . . Garrison Access Hacks . | . . . . Unauthorized Hacks 8 | . 1 . 7 Terminals 8 | . 1 . 7 Track 1 | . . . 1 Assimilate 2 | . . . 2 Botnet 4 | . 1 . 3 Operators 1 | . . . 1 Fabricators . | . . . . Repair Stations . | . . . . Recycling Units . | . . . . Scanalyzers . | . . . . Garrison Access . | . . . . Data Cores Recovered . | . . . . Used . | . . . . Hacking Detections 14 | . 5 1 8 Full Trace Events 2 | . 1 1 . Feedback Events . | . . . . Feedback Blocked . | . . . . Robot Schematics Acquired . | . . . . Robots Built . | . . . . Authchips . | . . . . Time . | . . . . Total Robot Build Rating . | . . . . Part Schematics Acquired . | . . . . Parts Built . | . . . . Authchips . | . . . . Time . | . . . . Total Part Build Rating . | . . . . Part Studies Acquired . | . . . . Parts Repaired 1 | . . . 1 Time 26 | . . . 26 Parts Recycled . | . . . . Recycled Matter . | . . . . Retrieved Matter . | . . . . Retrieved Components . | . . . . Parts Scanalyzed . | . . . . Part Schematics Acquired . | . . . . Parts Damaged . | . . . . Bothacking | -11 -10 -10 -9 ------------ Run | Yrd Mat Min Mat Used RIF Installer . | . . . . Robots Hacked . | . . . . Non-combat . | . . . . Combat . | . . . . Robot Hacks Applied . | . . . . Relay Couplers Released . | . . . . Fabnet Peak Effective % . | . . . . Robots Rewired . | . . . . Allies Hacked . | . . . . Hacks Repelled . | . . . . Allies | -11 -10 -10 -9 -------- Run | Yrd Mat Min Mat Total Allies 4 | . . 3 1 Largest Group 3 | . . 3 1 Highest-Rated Group 40 | . . 40 16 Highest-Rated Ally 16 | . . 16 16 Total Orders 1 | . . . 1 STAY 1 | . . . 1 Ally Attacks 51 | . . 27 24 Total Damage 510 | . . 261 249 Kills 9 | . . 6 3 Allies Corrupted . | . . . . Allies Melted . | . . . . Intel | -11 -10 -10 -9 ------- Run | Yrd Mat Min Mat Active Infowar (turns) 2565 | 14 335 946 1270 Seismic 2565 | 14 335 946 1270 Robot Analysis Total 1 | . 1 . . Derelict Logs Recovered 1 | . . 1 . Drone Launches . | . . . . Drone Recoveries . | . . . . Exploration | -11 -10 -10 -9 ------------- Run | Yrd Mat Min Mat Turns Passed 2831 | 262 335 961 1273 Spaces Moved 1845 | 92 272 695 786 Core 9 | 4 . . 5 Treads . | . . . . Legs . | . . . . Wheels 1836 | 88 272 695 781 Hover . | . . . . Flight . | . . . . Fastest Speed 50 | 50 80 95 95 Average Speed 95 | 78 90 95 99 Slowest Speed 650 | 80 95 110 650 Overloaded Moves . | . . . . Propulsion Burnouts . | . . . . Robots Hopped . | . . . . Potential Cave-ins . | . . . . Cave-ins Triggered . | . . . . Exploration Rate (%) 55 | 4 50 88 78 Regions Visited 3 Branch Regions 1 Pre-discovered Areas . | . . . . Known Exits Taken . | . . . . Unknown Exits Taken 3 | 1 1 1 . Scrap Searched 1 | . . 1 . Spaces Dug 11 | . 4 . 7 Terrain Destroyed 21 | . 4 . 17 Melee 4 | . . . 4 Projectile 10 | . 4 . 6 AOE 7 | . . . 7 Terrain Rammed . | . . . . Walls Destroyed . | . . . . Machines Disabled . | . . . . Actions | -11 -10 -10 -9 --------- Run | Yrd Mat Min Mat Total 2539 | 221 316 864 1138 Wait 357 | 78 12 65 202 Move 1842 | 91 271 694 786 Hop . | . . . . Pick Up 37 | 7 4 7 19 Fast Attach 18 | 7 . 1 10 Attach 6 | . . 2 4 Detach 1 | . . . 1 Swap 29 | . 4 8 17 Drop 31 | 2 2 6 21 Fire 213 | 36 23 81 73 Melee 5 | . . . 5 Ram . | . . . . Kick . | . . . . Crush . | . . . . Escape Stasis . | . . . . Rewire . | . . . . Trap . | . . . . Miscellaneous . | . . . . Route ------- -11/Scrapyard -10/Materials -10/Mines (discovered 2 exits: *Mat x2) -9/Materials (discovered 4 exits: *Mat x3 / [*Min]) History --------- Turn | Location | Event 3 | -11/Scrapyard | Discovered new exit (range 16) 263 | -11/Scrapyard | Entered Materials 308 | -10/Materials | Build established: Mutant 593 | -10/Materials | Discovered new exit (range 6) 598 | -10/Materials | Entered Mines 725 | -10/Mines | Discovered new exit (range 7) 998 | -10/Mines | Found a Scrap Suit stashed away for nefarious purposes 1156 | -10/Mines | Assisted by bots powering up and referring to "LRC-V3" 1219 | -10/Mines | Learned location of 1 exit from Materials 1335 | -10/Mines | Discovered new exit (range 5) 1559 | -10/Mines | Entered Materials 1559 | -9/Materials | Accompanied by 1 ally 1559 | -9/Materials | Evolved 2 slots: Utility x2 1560 | -9/Materials | Identified exit to Materials 1581 | -9/Materials | Build established: Scavenger-Mutant 1616 | -9/Materials | Repaired Hcp. Storage Unit 1959 | -9/Materials | Discovered new exit (range 12) 2112 | -9/Materials | Discovered exit to Materials (range 15) 2344 | -9/Materials | Discovered exit to Materials (range 15) 2832 | -9/Materials | Self-destructed Last Messages --------------- >>Trojan(Assimilate) Trojan loaded successfully. Testing... System interface override in place. 02642_ Dropped Imp. Heat Sink. 02643_ Acquired Rocket Launcher. 02655_ O-16 Technician: "IFF HANDSHAKE FAILED. SECURING TERMINAL." 02657_ O-16 Technician accesses terminal... 02657_ O-16 Technician IFF database reprogrammed. 02667_ U-05 Engineer builds a Wall. 02713_ Sneak attack on U-05 Engineer. 02713_ U-05 Engineer destroyed. 02717_ Acquired 13 matter. 02742_ Wheel destroyed. 02749_ Y-45 Defender destroyed. 02792_ Acquired Wheel. 02803_ Acquired Lgt. Treads. 02805_ Dropped Lgt. Treads. 02807_ Acquired 58 matter. 02813_ Acquired 57 matter. Map ----- +----------------------------------------------------+ | | | | | | | | | | | | | | | | | | | | | | | | | | | | | | | | | | | | | ??????#########???????????????????????? | | ??????# #???????????????????????? | | ####### """ #???????????????????????? | | / ### """ #???????????????????????? | | #?# """ #?????????#######???????? | | [ #??? ! ???????????# #???????? | | [ !######+############## #???????? | | [ *+ = [ ! @! +??!????? | | ######!############## #???????? | | ########?# #????????????# #???????? | | "" #?# #????????????## ##???????? | | T" ### ##????????????? #????????? | | # ????????????? +????????? | | """" # ????????????? #????????? | | """" + ?????!??????? #????????? | | """" # ?????????????# ##????????? | | # ?????????????? #?????????? | | ## #?????????????? #??